fUST/lending_fUST_20240906
["ID","MTS","AMOUNT","RATE_DAILY","PERIOD"]
[337327710,1725604252177,-500.0,0.00020303,2]
[337327711,1725604252187,-542.49912843,0.00020303,2]
[337327712,1725604252197,-500.0,0.00020303,2]
[337327713,1725604252207,-760.62,0.00020303,2]
[337327714,1725604252216,-500.0,0.00020303,2]
[337327715,1725604252225,-500.0,0.00020303,2]
[337327716,1725604252235,-530.41,0.00020303,2]
[337327717,1725604252356,-777.55,0.00020303,2]
[337327718,1725604252366,-500.0,0.00020303,2]
[337327719,1725604252375,-747.96,0.00020303,2]
[337327720,1725604252384,-500.0,0.00020303,2]
[337327721,1725604252393,-622.9,0.00020303,2]
[337327722,1725604252403,-500.0,0.00020303,2]
[337327723,1725604252412,-500.0,0.00020303,2]
[337327724,1725604252421,-500.0,0.00020303,2]
[337327725,1725604252430,-500.0,0.00020303,2]
[337327726,1725604252440,-500.0,0.00020303,2]
[337327727,1725604252449,-1654.86,0.00020303,2]
[337327728,1725604252458,-504.89324163,0.00020303,2]
[337327729,1725604252467,-500.0,0.00020303,2]
[337327730,1725604252477,-514.5131781,0.00020303,2]
[337327731,1725604252486,-500.0,0.00020303,2]
[337327732,1725604252495,-500.0,0.00020303,2]
[337327733,1725604252504,-500.0,0.00020303,2]
[337327734,1725604252512,-1297.69,0.00020303,2]
[337327735,1725604252521,-500.0,0.00020303,2]
[337327736,1725604252530,-500.0,0.00020303,2]
[337327737,1725604252540,-500.0,0.00020303,2]
[337327738,1725604252549,-500.0,0.00020303,2]
[337327739,1725604252559,-1199.06,0.00020303,2]
[337327740,1725604252568,-1040.7,0.00020303,2]
[337327741,1725604252577,-500.0,0.00020303,2]
[337327742,1725604252586,-500.0,0.00020303,2]
[337327743,1725604252595,-500.0,0.00020303,2]
[337327744,1725604252605,-500.0,0.00020303,2]
[337327745,1725604252620,-500.0,0.00020303,2]
[337327746,1725604252629,-483.17318248,0.00020303,2]
[337327747,1725604252638,-500.0,0.00020303,2]
[337327748,1725604252647,-546.3,0.00020303,2]
[337327749,1725604252657,-500.0,0.00020303,2]
[337327750,1725604252666,-1176.5,0.00020303,2]
[337327751,1725604252675,-500.0,0.00020303,2]
[337327752,1725604252684,-579.29,0.00020303,2]
[337327753,1725604252694,-723.69,0.00020303,2]
[337327754,1725604252703,-867.73,0.00020303,2]
[337327755,1725604252712,-500.0,0.00020303,2]
[337327756,1725604252722,-500.0,0.00020303,2]
[337327757,1725604252731,-2266.85,0.00020303,2]
[337327758,1725604252741,-506.49160367,0.00020323,2]
[337327759,1725604252750,-500.0,0.00020323,2]
[337327760,1725604252759,-214.69227494,0.00020323,2]
[337327761,1725604252769,-500.0,0.00020323,2]
[337327762,1725604252781,-500.0,0.00020323,2]
[337327763,1725604252790,-500.0,0.00020323,2]
[337327764,1725604252800,-500.0,0.00020323,2]
[337327765,1725604252809,-500.0,0.00020323,2]
[337327766,1725604252819,-543.72403102,0.00020323,2]
[337327767,1725604252828,-500.0,0.00020323,2]
[337327768,1725604252837,-500.0,0.00020323,2]
[337327769,1725604252847,-547.14487268,0.00020323,2]
[337327770,1725604252857,-500.0,0.00020323,2]
[337327771,1725604252867,-500.0,0.00020323,2]
[337327772,1725604252877,-619.69010058,0.00020323,2]
[337327773,1725604252886,-500.0,0.00020323,2]
[337327774,1725604252896,-500.0,0.00020323,2]
[337327775,1725604252905,-500.0,0.00020323,2]
[337327776,1725604252914,-513.1751574,0.00020323,2]
[337327777,1725604252923,-500.0,0.00020323,2]
[337327778,1725604252932,-1256.99,0.00020323,2]
[337327779,1725604252942,-699.71,0.00020323,2]
[337327780,1725604252951,-500.0,0.00020323,2]
[337327781,1725604252960,-500.0,0.00020323,2]
[337327782,1725604252970,-616.83,0.00020323,2]
[337327783,1725604252979,-500.0,0.00020323,2]
[337327784,1725604252988,-500.0,0.00020323,2]
[337327785,1725604252997,-500.0,0.00020323,2]
[337327786,1725604253006,-500.0,0.00020323,2]
[337327787,1725604253015,-500.0,0.00020323,2]
[337327788,1725604253025,-500.0,0.00020323,2]
[337327789,1725604253034,-500.0,0.00020323,2]
[337327790,1725604253043,-500.0,0.00020323,2]
[337327791,1725604253052,-517.94922226,0.00020323,2]
[337327792,1725604253062,-500.0,0.00020323,2]
[337327793,1725604253071,-500.0,0.00020323,2]
[337327794,1725604253081,-500.0,0.00020323,2]
[337327795,1725604253090,-676.0,0.00020323,2]
[337327796,1725604253099,-500.0,0.00020323,2]
[337327797,1725604253108,-500.0,0.00020323,2]
[337327798,1725604253119,-500.0,0.00020323,2]
[337327799,1725604253128,-500.0,0.00020323,2]
[337327800,1725604253137,-500.0,0.00020323,2]
[337327801,1725604253146,-525.2029328,0.00020323,2]
[337327802,1725604253155,-500.0,0.00020323,2]
[337327803,1725604253164,-500.0,0.00020323,2]
[337327804,1725604253173,-500.0,0.00020323,2]
[337327805,1725604253182,-500.0,0.00020323,2]
[337327806,1725604253191,-500.0,0.00020323,2]
[337327807,1725604253201,-500.0,0.00020323,2]
[337327808,1725604253211,-609.6,0.00020323,2]
[337327809,1725604253220,-500.0,0.00020323,2]
[337327810,1725604253230,-500.0,0.00020323,2]
[337327811,1725604253239,-500.0,0.00020323,2]
[337327812,1725604253248,-500.0,0.00020323,2]
[337327813,1725604253258,-500.0,0.00020323,2]
[337327814,1725604253267,-500.0,0.00020323,2]
[337327815,1725604253277,-500.0,0.00020323,2]
[337327816,1725604253286,-500.0,0.00020323,2]
[337327817,1725604253296,-500.0,0.00020323,2]
[337327818,1725604253305,-523.13,0.00020323,2]
[337327819,1725604253315,-500.0,0.00020323,2]
[337327820,1725604253324,-500.0,0.00020323,2]
[337327821,1725604253333,-500.0,0.00020323,2]
[337327822,1725604253342,-500.0,0.00020323,2]
[337327823,1725604253351,-500.0,0.00020323,2]
[337327824,1725604253362,-503.52492629,0.00020323,2]
[337327825,1725604253371,-500.0,0.00020323,2]
[337327826,1725604253380,-1703.52,0.00020323,2]
[337327827,1725604253389,-307.21814272,0.00020323,2]
[337327828,1725604253398,-500.0,0.00020323,2]
[337327829,1725604253407,-500.0,0.00020323,2]
[337327830,1725604253416,-391.09612941,0.00020323,2]
[337327831,1725604253425,-500.0,0.00020323,2]
[337327832,1725604253434,-500.0,0.00020323,2]
[337327833,1725604253443,-500.0,0.00020323,2]
[337327834,1725604253451,-500.0,0.00020323,2]
[337327835,1725604253461,-500.0,0.00020323,2]
[337327836,1725604253470,-500.0,0.00020323,2]
[337327837,1725604253479,-500.0,0.00020323,2]
[337327838,1725604253489,-500.0,0.00020323,2]
[337327839,1725604253499,-379.76151572,0.00020323,2]
[337327840,1725604253508,-500.0,0.00020323,2]
[337327841,1725604253517,-500.0,0.00020323,2]
[337327842,1725604253526,-500.0,0.00020323,2]
[337327843,1725604253535,-504.99450898,0.00020323,2]
[337327844,1725604253544,-500.0,0.00020323,2]
[337327845,1725604253553,-500.0,0.00020323,2]
[337327846,1725604253562,-506.68881237,0.00020323,2]
[337327847,1725604253571,-500.0,0.00020323,2]
[337327848,1725604253580,-500.0,0.00020323,2]
[337327849,1725604253589,-500.0,0.00020323,2]
[337327850,1725604253598,-500.0,0.00020323,2]
[337327851,1725604253607,-273.19935482,0.00020323,2]
[337327852,1725604253617,-500.0,0.00020323,2]
[337327853,1725604253626,-501.76345942,0.00020323,2]
[337327854,1725604253636,-500.0,0.00020323,2]
[337327855,1725604253645,-500.0,0.00020323,2]
[337327856,1725604253654,-500.0,0.00020323,2]
[337327857,1725604253663,-500.0,0.00020323,2]
[337327858,1725604253672,-500.0,0.00020323,2]
[337327859,1725604253681,-500.0,0.00020323,2]
[337327860,1725604253690,-500.0,0.00020323,2]
[337327861,1725604253699,-500.0,0.00020323,2]
[337327862,1725604253709,-500.0,0.00020323,2]
[337327863,1725604253718,-513.18518072,0.00020323,2]
[337327864,1725604253727,-500.0,0.00020323,2]
[337327865,1725604253736,-504.94051102,0.00020323,2]
[337327866,1725604253746,-500.0,0.00020323,2]
[337327867,1725604253755,-500.0,0.00020323,2]
[337327868,1725604253766,-502.72251865,0.00020323,2]
[337327869,1725604253780,-500.0,0.00020323,2]
[337327870,1725604253789,-500.0,0.00020323,2]
[337327871,1725604253798,-690.06,0.00020323,2]
[337327872,1725604253808,-500.0,0.00020323,2]
[337327873,1725604253818,-500.0,0.00020323,2]
[337327874,1725604253827,-500.0,0.00020323,2]
[337327875,1725604253836,-500.0,0.00020323,2]
[337327876,1725604253847,-500.0,0.00020323,2]
[337327877,1725604253856,-512.27019683,0.00020323,2]
[337327878,1725604253866,-504.14963447,0.00020323,2]
[337327879,1725604253876,-500.0,0.00020323,2]
[337327880,1725604253885,-500.0,0.00020323,2]
[337327881,1725604253894,-500.0,0.00020323,2]
[337327882,1725604253903,-500.0,0.00020323,2]
[337327883,1725604253913,-500.0,0.00020323,2]
[337327884,1725604253922,-500.0,0.00020323,2]
[337327885,1725604253932,-28355.05643031,0.00020377,2]
[337327886,1725604253942,-3491.67262316,0.00020547,2]
[337327887,1725604253951,-1359.97,0.00020565,2]
[337327888,1725604253960,-500.0,0.00020565,2]
[337327889,1725604253970,-1071.53,0.00020565,2]
[337327890,1725604253979,-510.69,0.00020565,2]
[337327891,1725604253988,-500.0,0.00020565,2]
[337327892,1725604253997,-500.0,0.00020565,2]
[337327893,1725604254007,-7287.96,0.00020565,2]
[337327894,1725604254016,-544.61,0.00020565,2]
[337327895,1725604254025,-1517.78,0.00020565,2]
[337327896,1725604254034,-500.0,0.00020565,2]
[337327897,1725604254043,-1203.84435596,0.00020565,2]
[337327898,1725604254591,-474.34152839,0.00020017,2]
[337327899,1725604254603,-25.65847161,0.00020017,2]
[337327900,1725604254615,-500.0,0.00020017,2]
[337327901,1725604254625,-500.0,0.00020291,2]
[337327902,1725604254635,-606.86564404,0.00020565,2]
[337327903,1725604254644,-726.0933678,0.00020565,2]
[337327904,1725604254861,-536.3166322,0.00020565,2]
[337327905,1725604254873,-807.29,0.00020565,2]
[337327906,1725604254883,-500.0,0.00020565,2]
[337327907,1725604254893,-714.04,0.00020565,2]
[337327908,1725604254902,-500.0,0.00020565,2]
[337327909,1725604254912,-2424.19,0.00020565,2]
[337327910,1725604254923,-500.0,0.00020565,2]
[337327911,1725604254932,-500.0,0.00020565,2]
[337327912,1725604254942,-500.0,0.00020565,2]
[337327913,1725604254952,-500.0,0.00020566,2]
[337327914,1725604254962,-500.0,0.00020566,2]
[337327915,1725604254971,-500.0,0.00020566,2]
[337327916,1725604254980,-758.49,0.00020566,2]
[337327917,1725604254990,-526.06,0.00020566,2]
[337327918,1725604255000,-507.55967135,0.00020566,2]
[337327919,1725604255009,-607.59,0.00020566,2]
[337327920,1725604255019,-500.0,0.00020566,2]
[337327921,1725604255028,-500.0,0.00020566,2]
[337327922,1725604255038,-500.0,0.00020566,2]
[337327923,1725604255047,-500.0,0.00020566,2]
[337327924,1725604255058,-606.94,0.00020566,2]
[337327925,1725604255067,-880.9,0.00020566,2]
[337327926,1725604255076,-500.0,0.00020566,2]
[337327927,1725604255086,-500.0,0.00020566,2]
[337327928,1725604255100,-500.0,0.00020566,2]
[337327929,1725604255110,-500.0,0.00020566,2]
[337327930,1725604255121,-500.0,0.00020566,2]
[337327931,1725604255130,-500.0,0.00020566,2]
[337327932,1725604255140,-529.52883632,0.00020566,2]
[337327933,1725604255149,-589.48,0.00020566,2]
[337327934,1725604255158,-500.0,0.00020566,2]
[337327935,1725604255167,-500.0,0.00020566,2]
[337327936,1725604255177,-511.13738869,0.00020566,2]
[337327937,1725604255186,-500.0,0.00020566,2]
[337327938,1725604255195,-723.56,0.00020566,2]
[337327939,1725604255205,-807.49,0.00020566,2]
[337327940,1725604255214,-500.0,0.00020566,2]
[337327941,1725604255227,-1376.04,0.00020566,2]
[337327942,1725604255236,-500.0,0.00020566,2]
[337327943,1725604255245,-500.0,0.00020566,2]
[337327944,1725604255255,-1067.79,0.00020566,2]
[337327945,1725604255264,-500.0,0.00020566,2]
[337327946,1725604255274,-516.67,0.00020566,2]
[337327947,1725604255283,-810.07,0.00020566,2]
[337327948,1725604255293,-905.11,0.00020566,2]
[337327949,1725604255303,-524.15089459,0.00020566,2]
[337327950,1725604255313,-863.57,0.00020566,2]
[337327951,1725604255323,-1239.76,0.00020566,2]
[337327952,1725604255332,-500.0,0.00020566,2]
[337327953,1725604255342,-1006.21,0.00020566,2]
[337327954,1725604255353,-500.0,0.00020566,2]
[337327955,1725604255363,-500.0,0.00020566,2]
[337327956,1725604255372,-22804.71,0.00020566,2]
[337327957,1725604255382,-831.65,0.00020566,2]
[337327958,1725604255391,-1059.7,0.00020566,2]
[337327959,1725604255401,-500.0,0.00020566,2]
[337327960,1725604255409,-7245.79,0.00020566,2]
[337327961,1725604255419,-1296.55,0.00020566,2]
[337327962,1725604255428,-937.68,0.00020566,2]
[337327963,1725604255437,-1141.17,0.00020566,2]
[337327964,1725604255447,-1240.31,0.00020566,2]
[337327965,1725604255457,-1306.01,0.00020566,2]
[337327966,1725604255468,-1288.1,0.00020566,2]
[337327967,1725604255477,-500.0,0.00020566,2]
[337327968,1725604255487,-500.0,0.00020566,2]
[337327969,1725604255497,-1780.78,0.00020566,2]
[337327970,1725604255507,-222.959353,0.00020566,2]
[337327971,1725604255516,-622.4,0.00020566,2]
[337327972,1725604255526,-222.959353,0.00020566,2]
[337327973,1725604255536,-500.0,0.00020566,2]
[337327974,1725604255547,-1873.06,0.00020566,2]
[337327975,1725604255556,-151.0,0.00020566,2]
[337327976,1725604255566,-500.0,0.00020566,2]
[337327977,1725604255576,-500.0,0.00020566,2]
[337327978,1725604255586,-2434.71,0.00020566,2]
[337327979,1725604255595,-837.63,0.00020566,2]
[337327980,1725604255605,-224.549443,0.00020566,2]
[337327981,1725604255615,-500.0,0.00020566,2]
[337327982,1725604255625,-224.549443,0.00020566,2]
[337327983,1725604255634,-500.0,0.00020566,2]
[337327984,1725604255644,-500.0,0.00020566,2]
[337327985,1725604255653,-525.68,0.00020566,2]
[337327986,1725604255663,-500.0,0.00020566,2]
[337327987,1725604255673,-500.0,0.00020566,2]
[337327988,1725604255683,-500.0,0.00020566,2]
[337327989,1725604255693,-576.81,0.00020566,2]
[337327990,1725604255703,-500.0,0.00020566,2]
[337327991,1725604255712,-500.0,0.00020566,2]
[337327992,1725604255722,-500.0,0.00020566,2]
[337327993,1725604255731,-500.0,0.00020566,2]
[337327994,1725604255741,-1572.024216,0.00020566,2]
[337327995,1725604255751,-172.116408,0.00020566,2]
[337327996,1725604255761,-1572.024216,0.00020566,2]
[337327997,1725604255771,-988.54,0.00020566,2]
[337327998,1725604255783,-172.116408,0.00020566,2]
[337327999,1725604255793,-500.0,0.00020566,2]
[337328000,1725604255802,-615.92,0.00020566,2]
[337328001,1725604255812,-151.0,0.00020566,2]
[337328002,1725604255822,-151.0,0.00020566,2]
[337328003,1725604255831,-151.0,0.00020566,2]
[337328004,1725604255840,-500.0,0.00020566,2]
[337328005,1725604255850,-1060.35,0.00020566,2]
[337328006,1725604255860,-599.96,0.00020566,2]
[337328007,1725604255869,-500.0,0.00020566,2]
[337328008,1725604255879,-1118.19,0.00020566,2]
[337328009,1725604255888,-500.0,0.00020566,2]
[337328010,1725604255897,-612.92021107,0.00020566,2]
[337328011,1725604255907,-2193.04,0.00020566,2]
[337328012,1725604255916,-500.0,0.00020566,2]
[337328013,1725604255926,-500.0,0.00020566,2]
[337328014,1725604255935,-612.02,0.00020566,2]
[337328015,1725604255945,-106401.02,0.00020566,2]
[337328016,1725604255954,-500.0,0.00020566,2]
[337328017,1725604255963,-500.0,0.00020566,2]
[337328018,1725604255972,-500.0,0.00020566,2]
[337328019,1725604255982,-1503.83,0.00020566,2]
[337328020,1725604255991,-151.0,0.00020566,2]
[337328021,1725604256000,-500.0,0.00020566,2]
[337328022,1725604256010,-500.0,0.00020566,2]
[337328023,1725604256019,-500.0,0.00020566,2]
[337328024,1725604256028,-500.0,0.00020573,2]
[337328025,1725604256038,-500.0,0.00020573,2]
[337328026,1725604256048,-349.44910089,0.00020573,2]
[337328027,1725604256057,-151.0,0.00020573,2]
[337328028,1725604256066,-56654.84831996,0.00020573,2]
[337328029,1725604256653,574.580096,0.0001,2]
[337328030,1725604256720,-500.0,0.00020017,2]
[337328031,1725604256729,-500.0,0.00020018,2]
[337328032,1725604256739,-500.0,0.00020018,2]
[337328033,1725604256748,-500.0,0.00020018,2]
[337328034,1725604256757,-194.10425374,0.00020028,2]
[337328036,1725604272972,157.433137,0.00019372,2]
[337328037,1725604273188,157.433137,0.00019517,2]
[337328038,1725604273408,157.433137,0.00019661,2]
[337328039,1725604273881,157.433137,0.00019805,2]
[337328040,1725604274094,157.433137,0.00019949,2]
[337328041,1725604367706,1367.26138402,0.00019917,2]
[337328042,1725604472443,235.7914634,0.00019178,2]
[337328043,1725604478685,12396.2036236,0.00019018,2]
[337328044,1725604505972,200.6,0.00027,120]
[337328045,1725604676762,772.4214711,0.00019918,2]
[337328046,1725604691604,168330.686063,0.00020007,2]
[337328047,1725604691705,42082.6715156,0.00020008,2]
[337328048,1725604691790,42082.6715156,0.00020008,2]
[337328050,1725604742102,854.1701616,0.0001902,2]
[337328051,1725604810479,157.433137,0.00019165,2]
[337328052,1725604810695,157.433137,0.00019498,2]
[337328053,1725604810899,157.433137,0.00019831,2]
[337328054,1725604813207,1196.353711,0.00019916,2]
[337328055,1725604952615,1000.0,0.00019917,2]
[337328057,1725604995536,29457.8700609,0.00020006,2]
[337328058,1725604995626,147289.350305,0.00020007,2]
[337328059,1725604995665,29457.8700609,0.00020008,2]
[337328060,1725604998579,1035838.6951033,0.00020006,2]
[337328117,1725605438511,-300.0,0.00020004,2]
[337328119,1725605438522,-500.0,0.00020005,2]
[337328121,1725605438531,-500.0,0.00020005,2]
[337328122,1725605438541,-500.0,0.00020005,2]
[337328123,1725605438550,-500.0,0.00020005,2]
[337328124,1725605438559,-500.0,0.00020005,2]
[337328125,1725605438569,-500.0,0.00020005,2]
[337328126,1725605438578,-500.0,0.00020005,2]
[337328127,1725605438588,-500.0,0.00020005,2]
[337328128,1725605438598,-500.0,0.00020005,2]
[337328129,1725605438607,-500.0,0.00020005,2]
[337328130,1725605438617,-453.55564393,0.00020005,2]
[337328131,1725605438626,-500.0,0.00020005,2]
[337328132,1725605438635,-500.0,0.00020005,2]
[337328133,1725605438645,-510.27717136,0.00020005,2]
[337328134,1725605438654,-500.0,0.00020005,2]
[337328135,1725605438663,-500.0,0.00020005,2]
[337328136,1725605438672,-500.0,0.00020005,2]
[337328137,1725605438682,-500.0,0.00020005,2]
[337328138,1725605438692,-500.0,0.00020005,2]
[337328139,1725605438701,-500.0,0.00020005,2]
[337328140,1725605438710,-500.0,0.00020005,2]
[337328141,1725605438719,-500.0,0.00020005,2]
[337328142,1725605438729,-500.0,0.00020005,2]
[337328143,1725605438738,-500.0,0.00020005,2]
[337328144,1725605438747,-708.81,0.00020005,2]
[337328145,1725605438757,-500.0,0.00020005,2]
[337328146,1725605438767,-500.0,0.00020005,2]
[337328147,1725605438776,-648.83,0.00020005,2]
[337328148,1725605438786,-500.0,0.00020005,2]
[337328149,1725605438795,-500.0,0.00020005,2]
[337328150,1725605438805,-500.0,0.00020005,2]
[337328151,1725605438814,-1084.79,0.00020005,2]
[337328152,1725605438823,-200.0,0.00020005,2]
[337328153,1725605438833,-785.18,0.00020005,2]
[337328154,1725605438842,-500.0,0.00020005,2]
[337328155,1725605438852,-500.0,0.00020005,2]
[337328156,1725605438862,-500.0,0.00020005,2]
[337328157,1725605438871,-500.0,0.00020005,2]
[337328158,1725605438881,-606.4,0.00020005,2]
[337328159,1725605438890,-1246.64,0.00020005,2]
[337328160,1725605438900,-500.0,0.00020005,2]
[337328161,1725605438909,-500.0,0.00020005,2]
[337328162,1725605438919,-500.0,0.00020005,2]
[337328163,1725605438928,-503.73757719,0.00020005,2]
[337328164,1725605438937,-500.0,0.00020005,2]
[337328165,1725605438945,-5095.91,0.00020005,2]
[337328166,1725605438955,-500.0,0.00020005,2]
[337328167,1725605438965,-500.0,0.00020005,2]
[337328168,1725605438974,-500.0,0.00020005,2]
[337328169,1725605438983,-998.52,0.00020005,2]
[337328170,1725605438992,-500.0,0.00020005,2]
[337328171,1725605439001,-982.24,0.00020005,2]
[337328172,1725605439011,-500.0,0.00020005,2]
[337328173,1725605439020,-500.0,0.00020005,2]
[337328174,1725605439030,-500.0,0.00020005,2]
[337328175,1725605439039,-500.0,0.00020005,2]
[337328176,1725605439048,-544.6,0.00020005,2]
[337328177,1725605439058,-500.0,0.00020005,2]
[337328178,1725605439067,-500.0,0.00020005,2]
[337328179,1725605439077,-500.0,0.00020005,2]
[337328180,1725605439086,-500.0,0.00020005,2]
[337328181,1725605439095,-500.0,0.00020005,2]
[337328182,1725605439105,-500.0,0.00020005,2]
[337328183,1725605439114,-500.0,0.00020005,2]
[337328184,1725605439123,-500.0,0.00020005,2]
[337328185,1725605439132,-500.0,0.00020005,2]
[337328186,1725605439142,-500.0,0.00020005,2]
[337328187,1725605439155,-2240.82,0.00020005,2]
[337328188,1725605439164,-6680.63,0.00020005,2]
[337328189,1725605439174,-500.0,0.00020005,2]
[337328190,1725605439183,-500.0,0.00020005,2]
[337328191,1725605439194,-500.0,0.00020005,2]
[337328192,1725605439203,-500.0,0.00020005,2]
[337328193,1725605439212,-215.40694777,0.00020005,2]
[337328194,1725605439223,-500.0,0.00020005,2]
[337328195,1725605439232,-152.35540448,0.00020005,2]
[337328196,1725605439243,-500.0,0.00020005,2]
[337328197,1725605439253,-500.0,0.00020005,2]
[337328198,1725605439262,-500.0,0.00020005,2]
[337328199,1725605439279,-500.0,0.00020005,2]
[337328200,1725605439289,-1391.3,0.00020005,2]
[337328201,1725605439300,-500.0,0.00020005,2]
[337328202,1725605439311,-500.0,0.00020005,2]
[337328203,1725605439320,-500.0,0.00020005,2]
[337328204,1725605439330,-500.0,0.00020005,2]
[337328205,1725605439339,-500.0,0.00020005,2]
[337328206,1725605439348,-500.0,0.00020005,2]
[337328207,1725605439358,-466.56821501,0.00020005,2]
[337328208,1725605439367,-1634.53,0.00020005,2]
[337328209,1725605439376,-1104.6,0.00020005,2]
[337328210,1725605439385,-500.0,0.00020005,2]
[337328211,1725605439395,-500.0,0.00020005,2]
[337328212,1725605439404,-657.17,0.00020005,2]
[337328213,1725605439413,-743.0,0.00020005,2]
[337328214,1725605439422,-500.0,0.00020005,2]
[337328215,1725605439432,-500.0,0.00020005,2]
[337328216,1725605439441,-649.42,0.00020005,2]
[337328217,1725605439450,-500.0,0.00020005,2]
[337328218,1725605439460,-504.37273267,0.00020005,2]
[337328219,1725605439469,-500.0,0.00020005,2]
[337328220,1725605439478,-500.0,0.00020005,2]
[337328221,1725605439487,-500.0,0.00020005,2]
[337328222,1725605439497,-500.0,0.00020005,2]
[337328223,1725605439506,-2185.34,0.00020005,2]
[337328224,1725605439516,-1461.11,0.00020005,2]
[337328225,1725605439526,-500.0,0.00020005,2]
[337328226,1725605439535,-500.0,0.00020005,2]
[337328227,1725605439544,-19147.6155396,0.00020005,2]
[337328228,1725605439553,-76590.4621584,0.00020006,2]
[337328229,1725605439563,-76590.4621584,0.00020007,2]
[337328230,1725605439572,-19147.6155396,0.00020008,2]
[337328231,1725605439582,-755.62,0.00020015,2]
[337328232,1725605439592,-19954.12,0.00020015,2]
[337328233,1725605439601,-927.24,0.00020015,2]
[337328234,1725605439611,-820.47,0.00020015,2]
[337328235,1725605439621,-1638.93,0.00020015,2]
[337328236,1725605439630,-500.0,0.00020015,2]
[337328237,1725605439640,-500.0,0.00020015,2]
[337328238,1725605439649,-500.0,0.00020015,2]
[337328239,1725605439658,-500.0,0.00020015,2]
[337328240,1725605439667,-912.04,0.00020015,2]
[337328241,1725605439677,-927.8,0.00020015,2]
[337328242,1725605439687,-978.42,0.00020015,2]
[337328243,1725605439696,-500.0,0.00020015,2]
[337328244,1725605439705,-564.66,0.00020015,2]
[337328245,1725605439716,-500.0,0.00020015,2]
[337328246,1725605439726,-1315.85,0.00020015,2]
[337328247,1725605439736,-500.0,0.00020015,2]
[337328248,1725605439745,-40140.8,0.00020015,2]
[337328249,1725605439755,-500.0,0.00020015,2]
[337328250,1725605439765,-500.0,0.00020015,2]
[337328251,1725605439774,-500.0,0.00020016,2]
[337328252,1725605439783,-500.0,0.00020016,2]
[337328253,1725605439793,-500.0,0.00020016,2]
[337328254,1725605439802,-730.94,0.00020016,2]
[337328255,1725605439812,-505.48,0.00020016,2]
[337328256,1725605439822,-500.0,0.00020016,2]
[337328257,1725605439831,-557.73,0.00020016,2]
[337328258,1725605439842,-500.0,0.00020016,2]
[337328259,1725605439852,-500.0,0.00020016,2]
[337328260,1725605439861,-500.0,0.00020016,2]
[337328261,1725605439871,-536.09823843,0.00020016,2]
[337328262,1725605439881,-500.0,0.00020016,2]
[337328263,1725605439890,-500.0,0.00020016,2]
[337328264,1725605439901,-582.95,0.00020016,2]
[337328265,1725605439910,-500.0,0.00020016,2]
[337328266,1725605439920,-808.44,0.00020016,2]
[337328267,1725605439930,-500.0,0.00020016,2]
[337328268,1725605439940,-500.0,0.00020016,2]
[337328270,1725605439949,-500.0,0.00020016,2]
[337328271,1725605439960,-500.0,0.00020016,2]